fUSD/lending_fUSD_20250110
["ID","MTS","AMOUNT","RATE_DAILY","PERIOD"]
[348373720,1736477453772,-150.0,0.00010959,2]
[348373721,1736477453783,-151.0,0.00010959,2]
[348373722,1736477453794,-200.39905809,0.00010983,2]
[348373723,1736477453803,-200.36663247,0.00010983,2]
[348373724,1736477453812,-500.0,0.00010983,2]
[348373725,1736477453821,-200.81202795,0.00010983,2]
[348373726,1736477453831,-500.0,0.00010983,2]
[348373727,1736477453843,-500.0,0.00010986,2]
[348373728,1736477453852,-202.8244599,0.00010995,2]
[348373729,1736477453862,-324.78234385,0.00011,2]
[348373730,1736477453871,-28372.54431554,0.00011,2]
[348373731,1736477453881,-20008.14718202,0.00011,2]
[348373732,1736477453891,-151.0,0.00011,2]
[348373733,1736477453900,-550.0,0.00011,2]
[348373734,1736477453909,-500.0,0.0001101,2]
[348373735,1736477453919,-500.0,0.0001101,2]
[348373736,1736477453929,-500.0,0.00011038,2]
[348373737,1736477453939,-500.0,0.00011038,2]
[348373738,1736477453948,-150.0,0.00011047,2]
[348373739,1736477453958,-150.0,0.00011047,2]
[348373740,1736477453968,-150.0,0.00011047,2]
[348373741,1736477453978,-150.16273031,0.00011047,2]
[348373742,1736477453987,-150.0,0.00011047,2]
[348373743,1736477453997,-690.60544238,0.0001105,2]
[348373744,1736477454007,-501.80289441,0.00011065,2]
[348373745,1736477454016,-500.0,0.00011065,2]
[348373746,1736477454025,-500.0,0.00011085,2]
[348373747,1736477454035,-500.0,0.00011085,2]
[348373748,1736477454045,-500.0,0.00011085,2]
[348373749,1736477454055,-500.0,0.00011085,2]
[348373750,1736477454064,-500.0,0.00011085,2]
[348373751,1736477454074,-500.0,0.00011085,2]
[348373752,1736477454083,-500.0,0.00011085,2]
[348373753,1736477454092,-500.0,0.00011085,2]
[348373754,1736477454102,-1142.92,0.00011085,2]
[348373755,1736477454112,-1233.37,0.00011085,2]
[348373756,1736477454121,-500.0,0.00011085,2]
[348373757,1736477454130,-6466.72,0.00011085,2]
[348373758,1736477454141,-806.44,0.00011085,2]
[348373759,1736477454150,-815.51,0.00011085,2]
[348373760,1736477454160,-984.41,0.00011085,2]
[348373761,1736477454169,-500.0,0.00011085,2]
[348373762,1736477454178,-969.37,0.00011085,2]
[348373763,1736477454187,-500.0,0.00011085,2]
[348373764,1736477454197,-931.27,0.00011085,2]
[348373765,1736477454207,-1601.35,0.00011085,2]
[348373766,1736477454217,-500.0,0.00011085,2]
[348373767,1736477454226,-2908.09,0.00011085,2]
[348373768,1736477454236,-534.48,0.00011085,2]
[348373769,1736477454245,-1381.38,0.00011085,2]
[348373770,1736477454254,-1096.05,0.00011085,2]
[348373771,1736477454264,-1498.7,0.00011085,2]
[348373772,1736477454274,-722.51,0.00011085,2]
[348373773,1736477454283,-2940.58,0.00011085,2]
[348373774,1736477454293,-521.71,0.00011085,2]
[348373775,1736477454302,-1498.1,0.00011085,2]
[348373776,1736477454312,-1382.77,0.00011085,2]
[348373777,1736477454321,-500.0,0.00011085,2]
[348373778,1736477454331,-866.43,0.00011085,2]
[348373779,1736477454340,-1335.62,0.00011085,2]
[348373780,1736477454350,-2518.51,0.00011085,2]
[348373781,1736477454359,-1056.7,0.00011085,2]
[348373782,1736477454369,-500.0,0.00011085,2]
[348373783,1736477454379,-500.0,0.00011085,2]
[348373784,1736477454388,-500.0,0.00011085,2]
[348373785,1736477454397,-500.0,0.00011085,2]
[348373786,1736477454407,-881.05,0.00011085,2]
[348373787,1736477454417,-500.0,0.00011085,2]
[348373788,1736477454426,-1461.84,0.00011085,2]
[348373789,1736477454435,-1029.74,0.00011085,2]
[348373790,1736477454445,-500.0,0.00011085,2]
[348373791,1736477454455,-691.56,0.00011085,2]
[348373792,1736477454464,-730.01,0.00011085,2]
[348373793,1736477454473,-500.0,0.00011085,2]
[348373794,1736477454489,-2592.9,0.00011085,2]
[348373795,1736477454499,-500.0,0.00011085,2]
[348373796,1736477454510,-945.53,0.00011085,2]
[348373797,1736477454523,-1193.59,0.00011085,2]
[348373798,1736477454533,-1002.13,0.00011085,2]
[348373799,1736477454543,-513.92,0.00011085,2]
[348373800,1736477454554,-202.8244599,0.0001109,2]
[348373801,1736477454564,-666.0,0.00011092,2]
[348373802,1736477454574,-666.0,0.00011092,2]
[348373803,1736477454584,-717.52873873,0.00011092,2]
[348373804,1736477454594,-1205.35,0.00011093,2]
[348373805,1736477454604,-1668.21,0.00011093,2]
[348373806,1736477454614,-1141.27,0.00011093,2]
[348373807,1736477454624,-3645.53,0.00011093,2]
[348373808,1736477454634,-1530.67,0.00011093,2]
[348373809,1736477454644,-2193.45,0.00011093,2]
[348373810,1736477454655,-1302.89,0.00011093,2]
[348373811,1736477454665,-1786.64,0.00011093,2]
[348373812,1736477454675,-945.27,0.00011093,2]
[348373813,1736477454686,-2370.23,0.00011093,2]
[348373814,1736477454698,-801.56,0.00011093,2]
[348373815,1736477454709,-919.87,0.00011093,2]
[348373816,1736477454719,-1420.74,0.00011093,2]
[348373817,1736477454729,-562.4,0.00011093,2]
[348373818,1736477454739,-1246.31,0.00011093,2]
[348373819,1736477454749,-796.46,0.00011093,2]
[348373820,1736477454760,-693.96,0.00011093,2]
[348373821,1736477454770,-941.23,0.00011093,2]
[348373822,1736477454780,-933.84,0.00011093,2]
[348373823,1736477454791,-1276.71,0.00011093,2]
[348373824,1736477454801,-1297.58,0.00011093,2]
[348373825,1736477454812,-2201.95,0.00011093,2]
[348373826,1736477454823,-5783.19,0.00011093,2]
[348373827,1736477454833,-1057.03,0.00011093,2]
[348373828,1736477454842,-803.72,0.00011093,2]
[348373829,1736477454852,-821.59,0.00011093,2]
[348373830,1736477454862,-2207.95,0.00011093,2]
[348373831,1736477454871,-500.0,0.00011093,2]
[348373832,1736477454881,-779.56,0.00011093,2]
[348373833,1736477454891,-840.26,0.00011093,2]
[348373834,1736477454901,-1169.18,0.00011093,2]
[348373835,1736477454911,-150.0,0.00011094,2]
[348373836,1736477454920,-666.0,0.00011094,2]
[348373837,1736477454930,-666.0,0.00011094,2]
[348373838,1736477454940,-192771.42556498,0.00011095,4]
[348373839,1736477455915,-491.6065,9.997e-05,2]
[348373840,1736477456491,-616.69,9.989e-05,2]
[348373841,1736477456501,-180.896,9.989e-05,2]
[348373842,1736477456512,-319.104,9.989e-05,2]
[348373843,1736477456523,-879.5235,9.997e-05,2]
[348373844,1736477456532,-500.0,9.999e-05,2]
[348373845,1736477456542,-930.8,9.999e-05,2]
[348373846,1736477456553,-616.69,0.00010263,2]
[348373847,1736477456563,-1029.3836,0.00010271,2]
[348373848,1736477456576,-341.7464,0.00010271,2]
[348373849,1736477456585,-500.0,0.00010273,2]
[348373850,1736477456595,-930.8,0.00010273,2]
[348373851,1736477456605,-616.69,0.00010537,2]
[348373852,1736477456614,-1371.13,0.00010545,2]
[348373853,1736477456624,-500.0,0.00010547,2]
[348373854,1736477456634,-930.8,0.00010547,2]
[348373855,1736477456643,-3189.39,0.00010811,2]
[348373856,1736477456654,-616.69,0.00010811,2]
[348373857,1736477456663,-1371.13,0.00010819,2]
[348373858,1736477456672,-500.0,0.00010821,2]
[348373859,1736477456682,-3189.39,0.00011085,2]
[348373860,1736477456691,-616.69,0.00011085,2]
[348373861,1736477456700,-1371.13,0.00011093,2]
[348373862,1736477456712,-5483.12303852,0.00011095,4]
[348373863,1736477456724,-34050.66072232,0.00011095,4]
[348373864,1736477456736,-3275.49642366,0.00011095,4]
[348373865,1736477456745,-14.50377701,0.00011095,2]
[348373866,1736477456757,-136.49622299,0.00011095,2]
[348373867,1736477456766,-538.37,0.00011095,2]
[348373868,1736477456775,-98.46188994,0.00011095,2]
[348373869,1736477456788,-401.53811006,0.00011095,2]
[348373870,1736477456798,-500.0,0.00011095,2]
[348373871,1736477456807,-500.0,0.00011095,2]
[348373872,1736477456816,-500.0,0.00011095,2]
[348373873,1736477456826,-500.0,0.00011095,2]
[348373874,1736477456835,-565.72,0.00011095,2]
[348373875,1736477456845,-500.0,0.00011095,2]
[348373876,1736477456855,-548.61,0.00011095,2]
[348373877,1736477456865,-303.621184,0.00011095,2]
[348373878,1736477456874,-500.0,0.00011095,2]
[348373879,1736477456883,-500.0,0.00011095,2]
[348373880,1736477456892,-308.833534,0.00011095,2]
[348373881,1736477456902,-500.0,0.00011095,2]
[348373882,1736477456912,-500.0,0.00011095,2]
[348373883,1736477456921,-406.99369406,0.00011095,2]
[348373884,1736477456934,-93.00630594,0.00011095,2]
[348373885,1736477456943,-500.0,0.00011095,2]
[348373886,1736477456952,-500.0,0.00011095,2]
[348373887,1736477456963,-529.37,0.00011095,2]
[348373888,1736477456972,-366.10138446,0.00011095,2]
[348373889,1736477456982,-500.0,0.00011095,2]
[348373890,1736477456994,-500.0,0.00011095,2]
[348373891,1736477457004,-534.46,0.00011095,2]
[348373892,1736477457013,-556.59,0.00011095,2]
[348373893,1736477457024,-500.0,0.00011095,2]
[348373894,1736477457034,-500.0,0.00011095,2]
[348373895,1736477457044,-500.0,0.00011095,2]
[348373896,1736477457054,-500.0,0.00011095,2]
[348373897,1736477457063,-552.2,0.00011095,2]
[348373898,1736477457074,-741.96,0.00011095,2]
[348373899,1736477457083,-500.0,0.00011095,2]
[348373900,1736477457093,-659.12,0.00011095,2]
[348373901,1736477457103,-500.0,0.00011095,2]
[348373902,1736477457113,-500.0,0.00011095,2]
[348373903,1736477457123,-704.98,0.00011095,2]
[348373904,1736477457133,-500.0,0.00011095,2]
[348373905,1736477457144,-637.66,0.00011095,2]
[348373906,1736477457154,-500.0,0.00011095,2]
[348373907,1736477457164,-500.0,0.00011095,2]
[348373908,1736477457174,-611.58,0.00011095,2]
[348373909,1736477457184,-500.0,0.00011095,2]
[348373910,1736477457194,-9.00638833,0.00011095,2]
[348373911,1736477457208,-403.46005804,0.00011095,2]
[348373912,1736477457221,-87.53355363,0.00011095,2]
[348373913,1736477457231,-214.08903335,0.00011095,2]
[348373914,1736477457791,-346.6554933,9.989e-05,2]
[348373916,1736478273852,1118.18,8.219e-05,2]
[348373944,1736478631881,-250.0,9.168e-05,2]
[348373945,1736478631890,-175.18,9.21e-05,2]
[348373946,1736478631900,-300.0,9.322e-05,2]
[348373947,1736478631912,-2419.29402518,9.323e-05,2]
[348373948,1736478631923,-722.54233573,9.323e-05,2]
[348373949,1736478631935,-2721.717,9.323e-05,2]
[348373950,1736478631947,-6143.53758481,9.323e-05,2]
[348373951,1736478631961,-6471.91905428,9.323e-05,2]
[348373952,1736478631970,-250.0,9.408e-05,2]
[348373953,1736478631980,-165.09,9.478e-05,2]
[348373954,1736478631990,-165.44,9.491e-05,2]
[348373955,1736478632241,-1000.0,9.522e-05,2]
[348373956,1736478632251,-241.54,9.522e-05,2]
[348373957,1736478632261,-315.79,9.598e-05,2]
[348373958,1736478632271,-250.0,9.628e-05,2]
[348373959,1736478632281,-4224.0,9.859e-05,2]
[348373960,1736478632290,-862.0557,9.899e-05,2]
[348373961,1736478632300,-8607.304604,9.972e-05,2]
[348373962,1736478632310,-4656.23746795,9.975e-05,2]
[348373963,1736478632320,-3145.72036177,9.975e-05,2]
[348373964,1736478632330,-3648.585812,9.976e-05,2]
[348373966,1736478632341,-2815.41156571,9.976e-05,2]
[348373968,1736478632351,-4656.23746795,9.977e-05,2]
[348373970,1736478632360,-6463.99737771,9.979e-05,2]
[348373971,1736478632370,-3145.72036177,9.98e-05,2]
[348373972,1736478632379,-200.0,9.982e-05,2]
[348373973,1736478632389,-104.40703031,9.982e-05,2]
[348373974,1736478632410,-4242.82074556,9.982e-05,2]
[348373975,1736478632422,-309.00969208,9.982e-05,2]
[348373976,1736478632431,-3145.72036177,9.983e-05,2]
[348373977,1736478632440,-744.96188731,9.983e-05,2]
[348373978,1736478632477,-466.42930039,9.983e-05,2]
[348373979,1736478637679,-7040.0,9.983e-05,2]
[348373989,1736478637933,-355.9134163,9.983e-05,2]
[348373990,1736478637943,-6463.99737771,9.983e-05,2]
[348373991,1736478637954,-3145.72036177,9.984e-05,2]
[348373992,1736478637964,-8401.72790934,9.985e-05,2]
[348373993,1736478637976,-205.57669466,9.985e-05,2]
[348373994,1736478637988,-803.26119878,9.986e-05,2]
[348373995,1736478638000,-3852.97626917,9.986e-05,2]
[348373996,1736478638010,-200.0,9.988e-05,2]
[348373997,1736478638019,-3145.72036177,9.989e-05,2]
[348373998,1736478638029,-6463.99737771,9.989e-05,2]
[348373999,1736478638039,-500.0,9.989e-05,2]
[348374000,1736478638049,-500.0,9.989e-05,2]
[348374001,1736478638059,-500.0,9.989e-05,2]
[348374002,1736478638068,-500.0,9.989e-05,2]
[348374003,1736478638078,-500.0,9.989e-05,2]
[348374004,1736478638088,-500.0,9.989e-05,2]
[348374005,1736478638097,-500.0,9.989e-05,2]
[348374006,1736478638107,-500.0,9.989e-05,2]
[348374007,1736478638117,-500.0,9.989e-05,2]
[348374008,1736478638127,-500.0,9.989e-05,2]
[348374009,1736478638136,-500.0,9.989e-05,2]
[348374010,1736478638147,-500.0,9.989e-05,2]
[348374011,1736478638157,-500.0,9.989e-05,2]
[348374012,1736478638166,-500.0,9.989e-05,2]
[348374013,1736478638176,-500.0,9.989e-05,2]
[348374014,1736478638187,-500.0,9.989e-05,2]
[348374015,1736478638200,-500.0,9.989e-05,2]
[348374016,1736478638210,-505.75420364,9.989e-05,2]
[348374017,1736478638220,-500.0,9.989e-05,2]
[348374018,1736478638230,-500.0,9.989e-05,2]
[348374019,1736478638239,-500.0,9.989e-05,2]
[348374020,1736478638249,-500.0,9.989e-05,2]
[348374021,1736478638260,-500.0,9.989e-05,2]
[348374022,1736478638270,-505.47533736,9.989e-05,2]
[348374023,1736478638280,-500.0,9.989e-05,2]
[348374024,1736478638289,-500.0,9.989e-05,2]
[348374025,1736478638299,-500.0,9.989e-05,2]
[348374026,1736478638308,-500.0,9.989e-05,2]
[348374027,1736478638318,-500.0,9.989e-05,2]
[348374028,1736478638327,-500.0,9.989e-05,2]
[348374029,1736478638336,-500.0,9.989e-05,2]
[348374030,1736478638345,-500.0,9.989e-05,2]
[348374031,1736478638354,-500.0,9.989e-05,2]
[348374032,1736478638363,-583.88,9.989e-05,2]
[348374033,1736478638372,-500.0,9.989e-05,2]
[348374034,1736478638382,-500.0,9.989e-05,2]
[348374035,1736478638392,-500.0,9.989e-05,2]
[348374036,1736478638402,-500.0,9.989e-05,2]
[348374037,1736478638412,-500.0,9.989e-05,2]
[348374038,1736478638423,-500.0,9.989e-05,2]
[348374039,1736478638433,-500.0,9.989e-05,2]
[348374040,1736478638443,-500.0,9.989e-05,2]
[348374041,1736478638452,-534.62,9.989e-05,2]
[348374042,1736478638462,-500.0,9.989e-05,2]
[348374043,1736478638472,-500.0,9.989e-05,2]
[348374044,1736478638481,-526.45,9.989e-05,2]
[348374045,1736478638490,-505.15193988,9.989e-05,2]
[348374046,1736478638500,-500.0,9.989e-05,2]
[348374047,1736478638509,-552.82,9.989e-05,2]
[348374048,1736478638518,-500.0,9.989e-05,2]
[348374049,1736478638528,-502.35962801,9.989e-05,2]
[348374050,1736478638538,-500.0,9.989e-05,2]
[348374051,1736478638548,-500.0,9.989e-05,2]
[348374052,1736478638557,-500.0,9.989e-05,2]
[348374053,1736478638566,-500.0,9.989e-05,2]
[348374054,1736478638576,-500.0,9.989e-05,2]
[348374055,1736478638585,-500.0,9.989e-05,2]
[348374056,1736478638595,-615.38031154,9.989e-05,2]
[348374057,1736478638604,-500.0,9.989e-05,2]
[348374058,1736478638614,-500.0,9.989e-05,2]
[348374059,1736478638623,-500.0,9.989e-05,2]
[348374060,1736478638633,-502.9298239,9.989e-05,2]
[348374061,1736478638642,-500.0,9.989e-05,2]
[348374062,1736478638652,-500.0,9.989e-05,2]
[348374063,1736478638661,-500.0,9.989e-05,2]
[348374064,1736478638671,-500.0,9.989e-05,2]
[348374065,1736478638680,-500.0,9.989e-05,2]
[348374066,1736478638691,-500.0,9.989e-05,2]
[348374067,1736478638700,-500.0,9.989e-05,2]
[348374068,1736478638710,-500.0,9.989e-05,2]
[348374069,1736478638719,-405.77965165,9.989e-05,2]
[348374070,1736478638728,-500.0,9.989e-05,2]
[348374071,1736478638738,-500.0,9.989e-05,2]
[348374072,1736478638749,-500.0,9.989e-05,2]
[348374073,1736478638759,-500.0,9.989e-05,2]
[348374074,1736478638768,-516.58321634,9.989e-05,2]
[348374075,1736478638778,-552.22,9.989e-05,2]
[348374076,1736478638787,-504.66719364,9.989e-05,2]
[348374077,1736478638797,-500.0,9.989e-05,2]
[348374078,1736478638806,-500.0,9.989e-05,2]
[348374079,1736478638815,-500.0,9.989e-05,2]
[348374080,1736478638824,-500.0,9.989e-05,2]
[348374081,1736478638834,-500.0,9.989e-05,2]
[348374082,1736478638843,-413.46970047,9.989e-05,2]
[348374083,1736478638852,-500.0,9.989e-05,2]
[348374084,1736478638861,-501.03,9.989e-05,2]
[348374085,1736478638871,-500.0,9.989e-05,2]
[348374086,1736478638880,-500.0,9.989e-05,2]
[348374087,1736478638889,-500.0,9.989e-05,2]
[348374088,1736478638899,-500.0,9.989e-05,2]
[348374089,1736478638911,-500.0,9.989e-05,2]
[348374090,1736478638921,-500.0,9.989e-05,2]
[348374091,1736478638931,-1972.36,9.989e-05,2]
[348374092,1736478638940,-500.0,9.989e-05,2]
[348374093,1736478638951,-503.0425278,9.989e-05,2]
[348374094,1736478638961,-501.24,9.989e-05,2]
[348374095,1736478638970,-500.0,9.989e-05,2]
[348374096,1736478638980,-500.0,9.989e-05,2]
[348374097,1736478638990,-500.0,9.989e-05,2]
[348374098,1736478639000,-1273.72,9.989e-05,2]
[348374099,1736478639011,-500.0,9.989e-05,2]
[348374100,1736478639021,-500.0,9.989e-05,2]
[348374101,1736478639030,-506.02369281,9.989e-05,2]
[348374102,1736478639040,-500.0,9.989e-05,2]
[348374103,1736478639050,-500.0,9.989e-05,2]
[348374104,1736478639059,-500.0,9.989e-05,2]
[348374105,1736478639069,-536.96,9.989e-05,2]
[348374106,1736478639078,-500.0,9.989e-05,2]
[348374107,1736478639088,-4121.59,9.989e-05,2]
[348374108,1736478639098,-500.0,9.989e-05,2]
[348374109,1736478639108,-509.05,9.989e-05,2]
[348374110,1736478639117,-500.0,9.989e-05,2]
[348374111,1736478639127,-616.4,9.989e-05,2]
[348374112,1736478639137,-674.74,9.989e-05,2]
[348374113,1736478639146,-2760.4,9.989e-05,2]
[348374114,1736478639156,-500.0,9.989e-05,2]
[348374115,1736478639166,-500.0,9.989e-05,2]
[348374116,1736478639175,-500.0,9.989e-05,2]
[348374117,1736478639185,-500.0,9.989e-05,2]
[348374118,1736478639195,-286.85284835,9.989e-05,2]
[348374119,1736478639205,-500.0,9.989e-05,2]
[348374120,1736478639214,-500.0,9.989e-05,2]
[348374121,1736478639224,-707.7,9.989e-05,2]
[348374122,1736478639233,-637.84,9.989e-05,2]
[348374123,1736478639242,-995.34,9.989e-05,2]
[348374124,1736478639252,-786.59,9.989e-05,2]
[348374125,1736478639262,-891.7,9.989e-05,2]
[348374126,1736478639271,-500.0,9.989e-05,2]
[348374127,1736478639280,-500.0,9.989e-05,2]
[348374128,1736478639290,-2889.43,9.989e-05,2]
[348374129,1736478639299,-500.0,9.989e-05,2]
[348374130,1736478639308,-569.93,9.989e-05,2]
[348374131,1736478639318,-500.0,9.989e-05,2]
[348374132,1736478639328,-500.0,9.989e-05,2]
[348374133,1736478639337,-559.24,9.989e-05,2]
[348374134,1736478639346,-500.0,9.989e-05,2]
[348374135,1736478639356,-500.0,9.989e-05,2]
[348374136,1736478639366,-500.0,9.989e-05,2]
[348374137,1736478639375,-500.0,9.989e-05,2]
[348374138,1736478639385,-705.08,9.989e-05,2]
[348374139,1736478639396,-500.0,9.989e-05,2]
[348374140,1736478639406,-539.88,9.989e-05,2]
[348374141,1736478639416,-567.59,9.989e-05,2]
[348374142,1736478639427,-593.2,9.989e-05,2]
[348374143,1736478639436,-500.0,9.989e-05,2]
[348374144,1736478639447,-826.72,9.989e-05,2]
[348374145,1736478639456,-701.34,9.989e-05,2]
[348374146,1736478639466,-588.53,9.989e-05,2]
[348374147,1736478639476,-808.98,9.989e-05,2]
[348374148,1736478639486,-503.99,9.989e-05,2]
[348374149,1736478639495,-678.27,9.989e-05,2]
[348374150,1736478639505,-570.44,9.989e-05,2]
[348374151,1736478639515,-500.0,9.989e-05,2]
[348374152,1736478639524,-500.0,9.989e-05,2]
[348374153,1736478639534,-500.0,9.989e-05,2]
[348374154,1736478639544,-1194.34,9.989e-05,2]
[348374155,1736478639554,-801.08,9.989e-05,2]
[348374156,1736478639564,-551.12,9.989e-05,2]
[348374157,1736478639574,-724.76,9.989e-05,2]
[348374158,1736478639584,-500.0,9.989e-05,2]
[348374159,1736478639593,-8607.304604,9.991e-05,2]
[348374160,1736478639603,-8607.304604,9.992e-05,2]
[348374161,1736478639613,-6463.99737771,9.995e-05,2]
[348374162,1736478639622,-4656.23746795,9.995e-05,2]
[348374163,1736478639632,-3145.72036177,9.996e-05,2]
[348374164,1736478639641,-665.21,9.997e-05,2]
[348374165,1736478639651,-1085.47,9.997e-05,2]
[348374166,1736478639660,-1000.0,9.997e-05,2]
[348374167,1736478639671,-773.97,9.997e-05,2]
[348374168,1736478639680,-2245.54,9.997e-05,2]
[348374169,1736478639690,-1376.49,9.997e-05,2]
[348374170,1736478639700,-6463.99737771,9.997e-05,2]
[348374171,1736478639711,-8607.304604,9.998e-05,2]
[348374172,1736478639720,-4656.23746795,9.999e-05,2]
[348374173,1736478639730,-796.96,9.999e-05,2]
[348374174,1736478639739,-500.0,9.999e-05,2]
[348374175,1736478639748,-500.28,9.999e-05,2]
[348374176,1736478639757,-709.23,9.999e-05,2]
[348374177,1736478639767,-500.0,9.999e-05,2]
[348374178,1736478639776,-500.0,9.999e-05,2]
[348374179,1736478639786,-1167.68,9.999e-05,2]
[348374180,1736478639795,-1617.91,9.999e-05,2]
[348374181,1736478639805,-1108.99,9.999e-05,2]
[348374182,1736478639815,-3533.41,9.999e-05,2]
[348374183,1736478639825,-1543.84,9.999e-05,2]
[348374184,1736478639834,-881.54,9.999e-05,2]
[348374185,1736478639843,-881.54,9.999e-05,2]
[348374186,1736478639852,-2102.06,9.999e-05,2]
[348374187,1736478639862,-2271.47,9.999e-05,2]
[348374188,1736478639871,-1361.54,9.999e-05,2]
[348374189,1736478639881,-1248.6,9.999e-05,2]
[348374190,1736478639890,-902.01,9.999e-05,2]
[348374191,1736478639899,-768.16,9.999e-05,2]
[348374192,1736478639911,-538.96,9.999e-05,2]
[348374193,1736478639920,-1712.19,9.999e-05,2]
[348374194,1736478639930,-763.28,9.999e-05,2]
[348374195,1736478639939,-894.93,9.999e-05,2]
[348374196,1736478639950,-500.0,9.999e-05,2]
[348374197,1736478639961,-665.05,9.999e-05,2]
[348374198,1736478639971,-905.89,9.999e-05,2]
[348374199,1736478639981,-313.50203924,0.0001,2]
[348374200,1736478639994,-175.84,0.0001,2]
[348374201,1736478640003,-150.0,0.00010085,2]
[348374202,1736478640015,-150.0,0.00010092,2]
[348374203,1736478640025,-1189.45,0.00010105,2]
[348374204,1736478640036,-1957.07,0.00010105,2]
[348374205,1736478640046,-5080.37,0.00010105,2]
[348374206,1736478640056,-928.57,0.00010105,2]
[348374207,1736478640067,-770.24,0.00010105,2]
[348374208,1736478640076,-787.36,0.00010105,2]
[348374209,1736478640087,-2115.95,0.00010105,2]
[348374210,1736478640097,-500.0,0.00010105,2]
[348374211,1736478640107,-747.08,0.00010105,2]
[348374212,1736478640119,-1120.46,0.00010105,2]
[348374213,1736478640128,-763.36,0.00010137,2]
[348374214,1736478640138,-500.0,0.00010186,2]
[348374215,1736478640147,-379.48858731,0.00010186,2]
[348374216,1736478640156,-600.0,0.00010186,2]
[348374217,1736478640166,-6471.37187189,0.00010247,4]
[348374218,1736478640175,-8089.21583984,0.00010247,4]
[348374219,1736478640185,-353.0,0.00010255,2]
[348374220,1736478640195,-500.0,0.0001026,2]
[348374221,1736478640204,-2818.05,0.0001026,2]
[348374222,1736478640213,-1325.16,0.0001026,2]
[348374223,1736478640222,-830.33,0.0001026,2]
[348374224,1736478640231,-2413.57,0.0001026,2]
[348374225,1736478640241,-500.0,0.0001026,2]
[348374226,1736478640250,-809.23,0.0001026,2]
[348374227,1736478640259,-500.0,0.0001026,2]
[348374228,1736478640268,-1471.64,0.0001026,2]
[348374229,1736478640277,-500.0,0.0001026,2]
[348374231,1736478640287,-698.76,0.0001026,2]
[348374233,1736478640296,-699.59,0.0001026,2]
[348374235,1736478640305,-2608.77,0.0001026,2]
[348374237,1736478640314,-906.14,0.0001026,2]
[348374239,1736478640323,-1016.0,0.0001026,2]
[348374241,1736478640332,-506.84638987,0.0001026,2]
[348374243,1736478640342,-500.0,0.00010261,2]
[348374245,1736478640351,-503.62524657,0.00010261,2]
[348374247,1736478640361,-500.0,0.00010261,2]
[348374249,1736478640370,-500.0,0.00010261,2]
[348374250,1736478640379,-500.0,0.00010261,2]
[348374252,1736478640388,-500.0,0.00010261,2]
[348374254,1736478640397,-500.0,0.00010261,2]
[348374256,1736478640407,-502.99090073,0.00010261,2]
[348374258,1736478640416,-500.0,0.00010261,2]
[348374260,1736478640425,-500.0,0.00010261,2]
[348374262,1736478640434,-504.64868028,0.00010261,2]
[348374264,1736478640443,-500.0,0.00010261,2]
[348374266,1736478640452,-500.0,0.00010261,2]
[348374268,1736478640461,-500.0,0.00010261,2]
[348374270,1736478640470,-500.0,0.00010261,2]
[348374272,1736478640480,-500.0,0.00010261,2]
[348374273,1736478640489,-500.0,0.00010261,2]
[348374275,1736478640498,-500.0,0.00010261,2]
[348374277,1736478640507,-500.0,0.00010261,2]
[348374279,1736478640515,-500.0,0.00010261,2]
[348374281,1736478640524,-500.0,0.00010261,2]
[348374283,1736478640534,-500.0,0.00010261,2]
[348374285,1736478640544,-500.0,0.00010261,2]
[348374287,1736478640553,-6384.52,0.00010261,2]